bitfinex-derivatives/quotes_SOLF0:USTF0_20250424
["timestamp","ask_amount","ask_price","bid_price","bid_amount"]
[1745510089220,25.44,149.83,149.79,8.04411908]
[1745510089412,6.673,149.81,149.8,6.978987]
[1745510090517,6.673,149.81,149.8,6.97835844]
[1745510091214,6.6735,149.8,149.78,8.04411908]
[1745510091517,8.04411908,149.82,149.78,8.04411908]
[1745510091817,6.6736,149.8,149.78,8.04411908]
[1745510092818,6.6736,149.8,149.78,14.71831908]
[1745510093018,6.6736,149.8,149.78,8.04411908]
[1745510093216,9.94391908,149.82,149.78,8.04411908]
[1745510093418,1.8998,149.82,149.78,8.04411908]
[1745510094420,25.44,149.83,149.79,8.04411908]
[1745510094621,40.15591908,149.84,149.81,6.6727]
[1745510095019,14.71591908,149.84,149.81,6.6727]
[1745510095221,6.6722,149.83,149.8,6.6732]
[1745510096125,6.6722,149.83,149.81,6.6729]
[1745510096420,6.6726,149.82,149.79,8.04411908]
[1745510096619,6.6726,149.82,149.79,14.71771908]
[1745510096920,6.6726,149.82,149.79,6.6736]
[1745510097220,6.673,149.81,149.79,6.6736]
[1745510097521,8.04411908,149.83,149.79,6.6736]
[1745510097819,8.04411908,149.83,149.8,6.6733]
[1745510098121,6.6728,149.82,149.79,6.6736]
[1745510099121,6.6728,149.82,149.8,6.6732]
[1745510099319,33.48411908,149.84,149.79,8.04411908]
[1745510100122,6.6723,149.83,149.8,6.6732]
[1745510100420,33.48411908,149.84,149.8,6.6732]
[1745510100819,6.6721,149.83,149.8,6.6732]
[1745510101020,33.48411908,149.84,149.8,6.6732]
[1745510101221,25.44,149.84,149.8,14.71731908]
[1745510101521,6.6723,149.83,149.81,6.6729]
[1745510101724,25.44,149.84,149.8,8.04411908]
[1745510101917,33.48411908,149.84,149.79,8.04411908]
[1745510102118,6.6728,149.82,149.79,8.04411908]
[1745510102822,6.6728,149.82,149.8,6.6732]
[1745510103221,33.48411908,149.84,149.79,8.04411908]
[1745510103422,25.44,149.84,149.82,6.6722]
[1745510103719,25.44,149.84,149.81,8.04411908]
[1745510103922,25.44,149.84,149.83,8.04411908]
[1745510104427,25.44,149.84,149.82,8.04411908]
[1745510104723,25.44,149.84,149.81,8.04411908]
[1745510104927,6.672,149.83,149.81,14.71671908]
[1745510105124,25.44,149.84,149.81,14.71671908]
[1745510106224,6.6721,149.83,149.81,14.71671908]
[1745510106425,33.48411908,149.84,149.79,8.04411908]
[1745510106925,6.6725,149.82,149.79,14.71761908]
[1745510107527,6.6725,149.82,149.8,6.6733]
[1745510107725,6.6729,149.81,149.79,8.04411908]
[1745510107926,33.48411908,149.84,149.79,8.04411908]
[1745510108424,8.04411908,149.83,149.79,8.04411908]
[1745510109128,6.6729,149.81,149.79,14.71771908]
[1745510109428,8.04411908,149.83,149.78,8.04411908]
[1745510109629,8.04411908,149.82,149.77,8.04411908]
[1745510109825,8.04411908,149.81,149.77,8.04411908]
[1745510110037,8.04411908,149.82,149.77,8.04411908]
[1745510110231,6.6737,149.8,149.77,14.71851908]
[1745510110530,6.6737,149.8,149.78,8.04411908]
[1745510111028,6.6737,149.8,149.78,14.71831908]
[1745510111628,25.42,149.8,149.73,3.9013]
[1745510111824,25.42,149.8,149.76,8.04411908]
[1745510112228,6.6747,149.77,149.76,8.04411908]
[1745510112531,8.04411908,149.78,149.74,8.04411908]
[1745510112731,8.04411908,149.78,149.73,8.04411908]
[1745510112929,6.6758,149.75,149.72,8.04411908]
[1745510113531,6.6762,149.74,149.72,8.04411908]
[1745510113722,8.04411908,149.77,149.72,8.04411908]
[1745510114031,6.6758,149.75,149.72,14.72081908]
[1745510114427,6.6758,149.75,149.73,8.04411908]
[1745510114633,32.0954,149.76,149.74,8.04411908]
[1745510115932,25.42,149.76,149.75,8.04411908]
[1745510116127,35.42311908,149.79,149.75,8.04411908]
[1745510116333,6.6754,149.76,149.74,8.04411908]
[1745510116735,8.04411908,149.78,149.74,8.04411908]
[1745510116934,8.04411908,149.77,149.73,6.6763]
[1745510118034,6.6754,149.76,149.73,6.6763]
[1745510118437,8.04411908,149.77,149.73,6.6763]
[1745510119233,6.6759,149.75,149.72,14.72091908]
[1745510119942,6.6763,149.74,149.72,8.04411908]
[1745510121140,6.6758,149.75,149.72,8.04411908]
[1745510121643,35.42311908,149.79,149.74,8.04411908]
[1745510121838,25.42,149.79,149.76,8.04411908]
[1745510122034,25.42,149.79,149.76,14.71911908]
[1745510122243,6.6747,149.77,149.76,8.04411908]
[1745510122444,33.46411908,149.79,149.74,8.04411908]
[1745510122839,6.6756,149.75,149.74,8.04411908]
[1745510123035,33.46411908,149.79,149.74,8.04411908]
[1745510123244,8.04411908,149.77,149.74,8.04411908]
[1745510123445,6.6756,149.75,149.74,8.04411908]
[1745510124243,6.6762,149.74,149.72,14.72081908]
[1745510124451,8.04411908,149.77,149.72,8.04411908]
[1745510124747,6.6754,149.76,149.73,6.6761]
[1745510125047,8.04411908,149.77,149.73,6.6761]
[1745510125243,8.04411908,149.77,149.72,8.04411908]
[1745510126249,8.04411908,149.77,149.72,14.72101908]
[1745510127349,6.6759,149.75,149.72,14.72101908]
[1745510127549,8.04411908,149.77,149.72,14.72101908]
[1745510128148,8.04411908,149.77,149.72,8.04411908]
[1745510129350,8.04411908,149.77,149.72,14.72101908]
[1745510129749,8.04411908,149.77,149.72,8.04411908]
[1745510130748,6.6764,149.74,149.72,8.04411908]
[1745510130950,6.6764,149.74,149.72,14.72101908]
[1745510131149,25.42,149.75,149.72,8.04411908]
[1745510131448,32.0958,149.75,149.72,8.04411908]
[1745510131646,32.0958,149.75,149.72,14.72081908]
[1745510131843,25.42,149.75,149.72,14.72081908]
[1745510132149,6.6761,149.74,149.71,14.72121908]
[1745510134052,32.0958,149.75,149.72,8.04411908]
[1745510134547,32.0958,149.75,149.73,6.6763]
[1745510134749,32.0958,149.75,149.73,14.72041908]
[1745510134951,25.42,149.75,149.73,8.04411908]
[1745510135142,25.42,149.75,149.74,8.04411908]
[1745510135340,25.42,149.75,149.74,14.72021908]
[1745510135754,25.4,149.78,149.74,8.04411908]
[1745510136056,8.04411908,149.86,149.77,8.04411908]
[1745510136351,3.2064082,149.87,149.82,8.04411908]
[1745510136352,25.4,149.85,149.82,8.04411908]
[1745510136552,25.4,149.85,149.83,14.71571908]
[1745510136751,25.4,149.85,149.83,8.04411908]
[1745510136953,25.4,149.85,149.84,6.6716]
[1745510137251,25.4,149.85,149.83,8.04411908]
[1745510137651,25.4,149.85,149.83,14.71591908]
[1745510138253,25.4,149.85,149.83,8.04411908]
[1745510138847,25.4,149.85,149.84,8.04411908]
[1745510139852,25.4,149.85,149.83,8.04411908]
[1745510140051,25.4,149.85,149.82,8.04411908]
[1745510140254,32.0714,149.85,149.82,14.71621908]
[1745510140552,25.4,149.85,149.83,8.04411908]
[1745510140954,25.4,149.85,149.84,6.6716]
[1745510141752,25.4,149.85,149.83,14.71601908]
[1745510141954,25.4,149.85,149.84,8.04411908]
[1745510142455,25.4,149.85,149.84,14.71571908]
[1745510142757,32.0699,149.88,149.84,8.04411908]
[1745510143057,32.0699,149.88,149.85,14.71511908]
[1745510143858,6.6703,149.87,149.85,14.71511908]
[1745510144156,6.6703,149.87,149.84,14.71551908]
[1745510144351,33.44411908,149.88,149.78,25.4]
[1745510144551,6.6708,149.86,149.83,6.6718]
[1745510144758,33.44411908,149.88,149.83,8.04411908]
[1745510144959,8.04411908,149.87,149.83,8.04411908]
[1745510145458,33.44411908,149.88,149.83,8.04411908]
[1745510145659,8.04411908,149.88,149.84,8.04411908]
[1745510145958,25.4,149.87,149.84,8.04411908]
[1745510146259,6.6709,149.86,149.83,6.6718]
[1745510146459,6.6709,149.86,149.84,8.04411908]
[1745510146857,25.4,149.87,149.84,8.04411908]
[1745510147060,25.4,149.87,149.85,8.04411908]
[1745510147261,480.68,149.9,149.86,8.04411908]
[1745510147561,506.08,149.9,149.88,6.6696]
[1745510147858,25.4,149.9,149.88,14.71371908]
[1745510148061,32.069,149.9,149.88,8.04411908]
[1745510148365,32.069,149.9,149.87,6.67]
[1745510148560,32.069,149.9,149.87,14.71411908]
[1745510150062,25.4,149.9,149.89,6.6694]
[1745510150263,25.4,149.9,149.87,8.04411908]
[1745510150962,32.0691,149.9,149.87,14.71431908]
[1745510151264,6.6694,149.89,149.87,8.04411908]
[1745510151560,6.6694,149.89,149.86,14.71471908]
[1745510151963,6.6703,149.87,149.84,14.71551908]
[1745510152164,6.6703,149.87,149.84,8.04411908]
[1745510152462,6.67,149.88,149.85,14.71521908]
[1745510152958,33.44411908,149.9,149.85,8.04411908]
[1745510153164,33.44411908,149.9,149.86,6.6705]
[1745510153363,33.44411908,149.9,149.85,8.04411908]
[1745510153564,6.67,149.88,149.85,14.71511908]
[1745510153862,33.44411908,149.9,149.85,14.71511908]
[1745510154058,6.6701,149.88,149.85,14.71511908]
[1745510154865,6.6698,149.89,149.86,6.6704]
[1745510155561,33.44411908,149.9,149.87,6.6702]
[1745510155766,32.0691,149.9,149.88,8.04411908]
[1745510156756,25.4,149.9,149.88,8.04411908]
[1745510156957,25.4,149.9,149.89,8.04411908]
[1745510157158,25.38,149.93,149.9,6.6689]
[1745510157368,6.6684,149.92,149.9,8.04411908]
[1745510157567,8.04411908,149.94,149.9,8.04411908]
[1745510157869,6.6681,149.92,149.9,14.71281908]
[1745510158366,6.6689,149.9,149.88,8.04411908]
[1745510159269,8.04411908,149.92,149.87,14.71421908]
[1745510159769,8.04411908,149.92,149.87,6.6701]
[1745510160069,8.04411908,149.91,149.86,14.71471908]
[1745510160264,8.04411908,149.9,149.86,14.71471908]
[1745510160566,6.6697,149.89,149.86,14.71471908]
[1745510160768,8.04411908,149.91,149.87,8.04411908]
[1745510161068,6.6692,149.9,149.87,8.04411908]
[1745510161260,6.6692,149.9,149.87,14.71411908]
[1745510161464,6.6687,149.91,149.87,8.04411908]
[1745510161663,6.6687,149.91,149.88,8.04411908]
[1745510162266,6.6687,149.91,149.88,14.71351908]
[1745510162466,8.04411908,149.94,149.9,8.04411908]
[1745510162663,25.38,149.95,149.92,6.668]
[1745510162863,32.047,149.95,149.92,8.04411908]
[1745510163175,25.38,149.95,149.92,8.04411908]
[1745510163869,25.38,149.95,149.93,6.6674]
[1745510164065,25.38,149.95,149.93,8.04411908]
[1745510164271,25.38,149.95,149.88,2.065]
[1745510164472,25.38,149.95,149.93,8.04411908]
[1745510164670,25.38,149.95,149.93,14.71141908]
[1745510165072,25.38,149.95,149.91,8.04411908]
[1745510165272,33.42411908,149.95,149.91,8.04411908]
[1745510165574,6.6683,149.92,149.9,6.6688]
[1745510165772,8.04411908,149.93,149.85,2.0634]
[1745510166067,6.6691,149.9,149.87,6.6699]
[1745510166272,6.6691,149.9,149.86,8.04411908]
[1745510166573,6.6691,149.9,149.87,6.67]
[1745510167471,6.6694,149.89,149.86,14.71451908]
[1745510167673,6.6694,149.89,149.86,8.04411908]
[1745510167973,6.6692,149.9,149.86,8.04411908]
[1745510168373,6.6692,149.9,149.87,6.6699]
[1745510168572,6.6692,149.9,149.88,8.04411908]
[1745510168874,32.0285,149.91,149.88,8.04411908]
[1745510169374,32.0285,149.91,149.88,14.71371908]
[1745510170074,32.0285,149.91,149.89,6.6693]
[1745510170474,25.36,149.91,149.89,6.6693]
[1745510170674,25.36,149.91,149.89,6.6694]
[1745510170972,25.36,149.91,149.88,8.04411908]
[1745510171172,8.04411908,149.89,149.83,29.3325]
[1745510171375,8.04411908,149.88,149.83,35.42561908]
[1745510171569,8.04411908,149.88,149.83,10.06561908]
[1745510171770,6.6705,149.87,149.83,10.06561908]
[1745510171974,6.6705,149.87,149.84,6.6712]
[1745510172479,6.6708,149.86,149.84,6.6712]
[1745510172978,6.6705,149.87,149.84,6.6712]
[1745510173273,37.91634918,149.91,149.86,6.6707]
[1745510173472,37.91634918,149.91,149.83,2.0215]
[1745510173674,6.6702,149.88,149.85,6.6709]
[1745510173877,6.6702,149.88,149.83,2.0215]
[1745510174277,6.6702,149.88,149.85,6.6707]
[1745510174677,6.6704,149.87,149.85,6.6707]
[1745510174878,12.55634918,149.88,149.81,1.9336]
[1745510175175,25.36,149.87,149.81,1.9336]
[1745510175377,6.6714,149.85,149.81,1.9336]
[1745510175573,25.36,149.87,149.81,1.9336]
[1745510175769,25.36,149.87,149.8,37.91634918]
[1745510175975,25.36,149.87,149.82,12.55634918]
[1745510176171,25.36,149.9,149.82,12.55634918]
[1745510176483,6.6698,149.88,149.84,12.55634918]
[1745510176676,25.36,149.9,149.84,12.55634918]
[1745510176677,25.36,149.9,149.86,6.6704]
[1745510176877,6.67,149.88,149.82,12.55634918]
[1745510177082,25.36,149.9,149.86,6.6707]
[1745510177278,25.36,149.9,149.84,12.55634918]
[1745510177477,25.36,149.9,149.83,12.55634918]
[1745510177976,6.6706,149.87,149.83,12.55634918]
[1745510178280,6.6706,149.87,149.84,6.6715]
[1745510178575,37.91634918,149.9,149.81,12.55634918]
[1745510178982,6.6714,149.85,149.81,12.55634918]
[1745510179179,37.91634918,149.9,149.81,12.55634918]
[1745510179377,37.91634918,149.9,149.83,6.6717]
[1745510179577,6.6708,149.86,149.83,6.6717]
[1745510179980,6.6705,149.87,149.84,6.6715]
[1745510180274,37.91634918,149.9,149.84,6.6715]
[1745510181175,6.6708,149.86,149.84,6.6715]
[1745510181380,6.6708,149.86,149.83,6.6719]
[1745510181581,6.6718,149.84,149.8,25.36]
[1745510181977,6.6718,149.84,149.81,6.6727]
[1745510182272,6.6729,149.82,149.78,4.0554]
[1745510182479,6.6729,149.82,149.78,1.9852]
[1745510182982,6.6729,149.82,149.79,6.6735]
[1745510183180,6.6729,149.82,149.78,1.9852]
[1745510185080,37.91634918,149.86,149.79,6.6737]
[1745510185287,12.55634918,149.84,149.76,1.9035]
[1745510185783,6.6732,149.81,149.78,6.6741]
[1745510186084,4.0559,149.85,149.76,1.9035]
[1745510186885,6.6727,149.82,149.79,6.6735]
[1745510187185,4.0559,149.85,149.76,1.9035]
[1745510187378,6.6731,149.81,149.78,6.674]
[1745510187785,6.6731,149.81,149.75,12.55634918]
[1745510187786,25.36,149.82,149.75,12.55634918]
[1745510187987,6.6737,149.8,149.77,6.6744]
[1745510188487,25.36,149.82,149.77,6.6744]
[1745510189187,12.55634918,149.81,149.76,6.6752]
[1745510189387,14.46284918,149.81,149.76,6.6752]
[1745510189586,6.6744,149.78,149.76,6.6752]
[1745510189787,6.6744,149.78,149.75,6.6754]
[1745510189981,14.46284918,149.81,149.72,14.50694918]
[1745510190186,6.6741,149.79,149.76,6.6749]
[1745510190386,14.46284918,149.81,149.72,14.50694918]
[1745510190687,6.6744,149.78,149.72,14.50694918]
[1745510191195,6.674,149.79,149.72,14.50694918]
[1745510191486,14.46284918,149.81,149.72,14.50694918]
[1745510191791,6.6754,149.76,149.71,25.36]
[1745510191992,6.6754,149.76,149.73,6.6763]
[1745510192188,6.675,149.77,149.71,25.36]
[1745510192385,25.36,149.78,149.71,25.36]
[1745510192591,25.36,149.78,149.72,6.6767]
[1745510193089,29.2886,149.78,149.72,6.6767]
[1745510193288,29.2886,149.78,149.71,6.6773]
[1745510193493,6.6764,149.74,149.68,47.66343343]
[1745510194390,6.6764,149.74,149.68,39.79854918]
[1745510195095,6.6758,149.75,149.68,39.79854918]
[1745510195394,6.6758,149.75,149.72,6.6769]
[1745510197496,29.2886,149.78,149.68,39.79854918]
[1745510197997,6.6764,149.74,149.71,6.6774]
[1745510198296,12.55634918,149.77,149.68,37.91634918]
[1745510198491,12.55634918,149.77,149.67,12.55634918]
[1745510198697,6.6778,149.71,149.68,6.6786]
[1745510198892,6.6778,149.71,149.66,1.8797]
[1745510200300,6.6772,149.72,149.66,1.8797]
[1745510200501,6.6772,149.72,149.69,6.6783]
[1745510201100,6.6774,149.71,149.69,6.6783]
[1745510201603,12.55634918,149.73,149.65,37.91634918]
[1745510201798,14.49484918,149.73,149.65,37.91634918]
[1745510202102,14.49484918,149.73,149.67,6.6792]
[1745510202302,14.49484918,149.73,149.65,25.36]
[1745510202502,14.49484918,149.73,149.62,1.9652]
[1745510202503,12.55634918,149.71,149.62,1.9652]
[1745510202703,6.679,149.68,149.65,6.68]
[1745510203001,25.36,149.7,149.62,1.9652]
[1745510203701,12.55634918,149.69,149.61,37.91634918]
[1745510203902,12.55634918,149.69,149.63,6.6807]
[1745510204102,12.55634918,149.69,149.59,14.63004918]
[1745510204303,12.55634918,149.67,149.59,2.0737]
[1745510204505,6.6802,149.65,149.59,2.0737]
[1745510204904,25.36,149.66,149.62,6.681]
[1745510205203,25.36,149.66,149.59,2.0737]
[1745510205402,25.36,149.66,149.6,6.6821]
[1745510205593,27.3047,149.66,149.6,6.6821]
[1745510206003,6.6819,149.61,149.56,14.51194918]
[1745510206203,6.6819,149.61,149.56,1.9556]
[1745510206405,25.38,149.62,149.55,40.01004918]
[1745510207206,25.38,149.62,149.54,12.55634918]
[1745510207703,6.6825,149.6,149.56,6.6841]
[1745510207898,25.38,149.62,149.54,12.55634918]
[1745510208107,25.38,149.62,149.56,12.55634918]
[1745510208304,32.0612,149.63,149.59,6.6824]
[1745510208599,25.38,149.63,149.58,12.55634918]
[1745510209302,8.6722,149.65,149.6,12.55634918]
[1745510209508,34.0045,149.66,149.6,12.55634918]
[1745510210002,34.0045,149.66,149.62,6.681]
[1745510210199,34.0045,149.66,149.6,12.55634918]
[1745510210503,6.6801,149.65,149.6,12.55634918]
[1745510210798,6.6805,149.64,149.6,12.55634918]
[1745510211106,6.6805,149.64,149.56,25.38]
[1745510211107,12.55634918,149.65,149.56,37.93634918]
[1745510211299,14.44754918,149.65,149.56,37.93634918]
[1745510211809,14.44754918,149.65,149.59,6.6825]
[1745510212408,6.6818,149.62,149.59,6.6825]
[1745510213608,6.6818,149.62,149.56,37.93634918]
[1745510214108,6.6811,149.63,149.6,6.6823]
[1745510214510,14.44754918,149.65,149.56,37.93634918]
[1745510214710,6.6817,149.62,149.59,6.6826]
[1745510215011,25.38,149.62,149.56,37.93634918]
[1745510215308,25.38,149.62,149.54,12.55634918]
[1745510215710,6.6826,149.6,149.56,6.6837]
[1745510217013,6.6828,149.59,149.56,6.6837]
[1745510218510,6.6834,149.58,149.54,19.24094918]
[1745510218715,6.6834,149.58,149.54,6.6846]
[1745510219014,6.6834,149.58,149.55,6.6843]
[1745510220217,12.55634918,149.61,149.53,1.9278]
[1745510220716,6.6839,149.57,149.54,6.6848]
[1745510220915,25.38,149.58,149.5,12.55634918]
[1745510221115,25.38,149.58,149.49,27.2861]
[1745510221417,6.6853,149.54,149.51,6.6861]
[1745510222217,6.6854,149.53,149.49,27.2861]
[1745510222419,25.36,149.54,149.46,39.86064918]
[1745510222717,25.36,149.54,149.49,6.6869]
[1745510222918,6.6861,149.52,149.49,6.6869]
[1745510223417,6.6861,149.52,149.48,6.6875]
[1745510223819,6.6864,149.51,149.46,37.91634918]
[1745510224018,6.6864,149.51,149.47,6.6879]
[1745510224319,12.55634918,149.51,149.42,41.77304918]
[1745510224618,25.38,149.5,149.46,6.6885]
[1745510225018,25.38,149.5,149.44,6.6891]
[1745510225318,6.6878,149.48,149.42,41.77304918]
[1745510225819,25.38,149.5,149.42,41.77304918]
[1745510226015,25.38,149.5,149.4,12.55634918]
[1745510226219,25.38,149.5,149.43,6.6896]
[1745510226419,6.6884,149.47,149.43,6.6896]
[1745510226722,27.3809,149.5,149.45,6.6889]
[1745510227220,27.3809,149.5,149.42,12.55634918]
[1745510227715,6.6879,149.48,149.42,12.55634918]
[1745510227924,6.6879,149.48,149.44,6.6891]
[1745510228319,6.6882,149.47,149.44,6.6891]
[1745510228516,6.6882,149.47,149.42,12.55634918]
[1745510229322,6.6878,149.48,149.42,12.55634918]
[1745510230023,27.3809,149.5,149.42,12.55634918]
[1745510230522,6.6877,149.48,149.44,6.6891]
[1745510231022,27.3809,149.5,149.42,12.55634918]
[1745510231222,12.55634918,149.49,149.43,6.6897]
[1745510231820,6.6883,149.47,149.43,6.6897]
[1745510232019,12.55634918,149.49,149.42,6.6902]
[1745510232322,6.6893,149.45,149.42,6.6902]
[1745510232516,19.24564918,149.45,149.42,6.6902]
[1745510232723,12.55634918,149.43,149.39,6.6916]
[1745510233025,25.38,149.42,149.34,16.39014918]
[1745510233215,25.38,149.42,149.37,6.6922]
[1745510233413,25.38,149.42,149.34,16.39014918]
[1745510233822,25.38,149.42,149.36,12.55634918]
[1745510234322,25.38,149.42,149.39,6.6914]
[1745510234523,1.9935,149.46,149.38,12.55634918]
[1745510234725,14.54984918,149.46,149.38,12.55634918]
[1745510235023,6.6896,149.44,149.4,6.691]
[1745510235317,14.54984918,149.46,149.4,6.691]
[1745510235518,25.38,149.44,149.4,6.691]
[1745510235719,25.38,149.44,149.41,6.6906]
[1745510236225,25.38,149.44,149.38,12.55634918]
[1745510236922,25.38,149.44,149.41,6.6907]
[1745510237318,6.6899,149.43,149.38,12.55634918]
[1745510238022,25.38,149.44,149.36,12.55634918]
[1745510238428,6.6905,149.42,149.38,6.6918]
[1745510239025,6.691,149.41,149.38,6.6918]
[1745510239225,37.93634918,149.44,149.37,6.6924]
[1745510239624,37.93634918,149.44,149.34,41.77014918]
[1745510240225,6.6912,149.41,149.37,6.6926]
[1745510240523,6.6912,149.41,149.34,41.77014918]
[1745510240924,6.6913,149.4,149.34,41.77014918]
[1745510241724,6.691,149.41,149.34,41.77014918]
[1745510242024,37.93634918,149.44,149.34,41.77014918]
[1745510242227,37.93634918,149.44,149.37,6.6923]
[1745510242724,6.691,149.41,149.38,6.6921]
[1745510243427,6.6905,149.42,149.36,12.55634918]
[1745510243727,25.38,149.44,149.36,12.55634918]
[1745510244423,25.4,149.46,149.38,12.55634918]
[1745510244726,6.6897,149.44,149.41,6.6905]
[1745510245127,6.6893,149.45,149.42,6.6903]
[1745510245524,25.4,149.46,149.39,12.55634918]
[1745510245729,25.4,149.46,149.41,12.55634918]
[1745510245928,25.4,149.48,149.43,12.55634918]
[1745510246129,25.4,149.48,149.45,6.6887]
[1745510246427,37.95634918,149.48,149.39,1.9796]
[1745510246622,6.6892,149.45,149.39,1.9796]
[1745510246823,37.95634918,149.48,149.4,12.55634918]
[1745510247224,6.6886,149.46,149.42,6.6902]
[1745510247423,25.4,149.48,149.4,12.55634918]
[1745510248532,6.6888,149.46,149.43,6.6896]
[1745510248732,25.4,149.48,149.4,12.55634918]
[1745510249124,6.6882,149.47,149.44,6.6892]
[1745510249431,25.4,149.48,149.4,12.55634918]
[1745510249632,25.4,149.48,149.42,12.55634918]
[1745510249827,32.0879,149.48,149.45,6.6888]
[1745510250130,25.4,149.48,149.42,12.55634918]
[1745510250331,25.4,149.48,149.44,12.55634918]
[1745510250632,25.4,149.48,149.46,6.6883]
[1745510251534,25.4,149.48,149.42,12.55634918]
[1745510252837,32.0879,149.48,149.45,6.6887]
[1745510253333,6.6882,149.47,149.42,12.55634918]
[1745510253733,25.4,149.48,149.42,12.55634918]
[1745510254033,25.4,149.48,149.45,6.6888]
[1745510254034,32.0879,149.48,149.45,6.6888]
[1745510254532,6.6882,149.47,149.44,6.6892]
[1745510255234,25.38,149.48,149.39,27.3796]
[1745510255430,25.38,149.48,149.4,12.55634918]
[1745510255736,6.6886,149.46,149.4,12.55634918]
[1745510255931,25.38,149.48,149.4,12.55634918]
[1745510256441,6.6883,149.47,149.44,6.6892]
[1745510256930,25.38,149.48,149.4,12.55634918]
[1745510257129,32.0679,149.48,149.42,12.55634918]
[1745510257538,32.0679,149.48,149.45,6.6887]
[1745510257730,6.6882,149.47,149.42,12.55634918]
[1745510258237,6.6882,149.47,149.44,6.6893]
[1745510259136,25.38,149.48,149.4,12.55634918]
[1745510259337,25.38,149.48,149.39,39.93594918]
[1745510259536,37.93634918,149.48,149.39,39.93594918]
[1745510259735,6.6892,149.45,149.42,6.6901]
[1745510260434,6.6888,149.46,149.43,6.6898]
[1745510260638,6.6888,149.46,149.41,12.55634918]
[1745510261035,6.6883,149.47,149.44,6.6893]
[1745510261739,25.38,149.48,149.43,12.55634918]
[1745510262237,25.38,149.48,149.47,6.6881]
[1745510262740,27.2871,149.51,149.47,6.6881]
[1745510262941,6.6872,149.49,149.47,6.6881]
[1745510263139,27.2871,149.51,149.43,12.55634918]
[1745510263339,6.6878,149.48,149.43,12.55634918]
[1745510263841,6.6878,149.48,149.46,6.6885]
[1745510264142,6.6874,149.49,149.46,6.6885]
[1745510264543,6.6874,149.49,149.47,6.6881]
[1745510264839,6.6874,149.49,149.43,37.91634918]
[1745510265034,6.6869,149.5,149.43,37.91634918]
[1745510265233,25.36,149.51,149.43,37.91634918]
[1745510265533,6.6881,149.47,149.44,6.6892]
[1745510266843,6.6888,149.46,149.43,6.6898]
[1745510267337,12.55634918,149.5,149.4,37.91634918]
[1745510267943,6.6892,149.45,149.4,37.91634918]
[1745510268241,25.36,149.47,149.4,37.91634918]
[1745510268543,6.6897,149.44,149.4,37.91634918]
[1745510269139,6.6897,149.44,149.42,6.6902]
[1745510269443,6.6892,149.45,149.42,6.6902]
[1745510269642,6.6892,149.45,149.4,37.91634918]
[1745510270044,6.6892,149.45,149.42,6.69]
[1745510270746,6.6895,149.44,149.42,6.69]
[1745510271545,25.36,149.47,149.4,37.91634918]
[1745510272042,25.36,149.47,149.42,6.69]
[1745510273348,25.36,149.47,149.39,1.9796]
[1745510273946,6.6903,149.43,149.4,6.691]
[1745510274142,25.36,149.47,149.38,12.55634918]
[1745510274352,12.55634918,149.45,149.37,29.3897]
[1745510274647,12.55634918,149.45,149.38,6.6919]
[1745510275247,6.6915,149.4,149.37,6.6924]
[1745510275648,25.38,149.42,149.35,12.55634918]
[1745510275949,6.691,149.41,149.38,6.6919]
[1745510277749,6.6915,149.4,149.37,6.6923]
[1745510277951,6.6915,149.4,149.35,12.55634918]
[1745510278652,6.691,149.41,149.35,12.55634918]
[1745510278851,6.691,149.41,149.38,6.6919]
[1745510280042,40.15723654,149.42,149.39,6.6914]
[1745510280450,33.46673654,149.42,149.39,6.6914]
[1745510281253,6.6914,149.4,149.37,8.08673654]
[1745510281449,8.08673654,149.4,149.35,8.08673654]
[1745510281652,8.08673654,149.38,149.33,8.08673654]
[1745510281852,6.6928,149.37,149.33,14.78093654]
[1745510282353,8.08673654,149.36,149.3,8.08673654]
[1745510282551,8.08673654,149.36,149.29,41.28174094]